[Event "Asian Amateur-ch Women 2022"]
[Site "Muscat"]
[Date "2022.10.05"]
[Round "9.9"]
[White "Al-Khelaifi, Aisha"]
[Black "Amal Fadel S M Alshamsi"]
[Result "0-1"]
[ECO "B22"]
[WhiteElo "1678"]
[BlackElo "1404"]
[Annotator "NA COMBH"]
[PlyCount "82"]
[EventDate "2022.09.29"]
[EventType "swiss"]
[EventCountry "OMN"]
[SourceTitle "playchess.com"]
[Source "ChessBase"]
[SourceQuality "1"]
[TimeControl "5400+30"]

1. e4 {[%emt 0:00:03]} e6 {[%emt 0:00:07]} 2. d4 {[%emt 0:00:05]} d5 {[%emt 0:00:02]} 3. exd5 {[%emt 0:00:35]} exd5 {[%emt 0:00:09]} 4. Bd3 {[%emt 0:01:10]} Nf6 {[%emt 0:12:01]} 5. Nf3 {[%emt 0:02:18]} c5 {[%emt 0:04:22]} 6. c3 {[%emt 0:03:01]} c4 {[%emt 0:01:54]} 7. Bc2 {[%emt 0:00:10]} Bd6 {[%emt 0:03:53]} 8. O-O {[%emt 0:02:35]} O-O {[%emt 0:01:20]} 9. Bg5 {[%emt 0:01:47]} Bg4 {[%emt 0:01:47]} 10. Nbd2 {[%emt 0:02:38]} Nbd7 {[%emt 0:03:43]} 11. Re1 {[%emt 0:04:08]} Qc7 {[%emt 0:06:01]} 12. h3 {[%emt 0:08:13]} Bh5 {[%emt 0:03:11]} 13. Bf5 {[%emt 0:11:55]} h6 {[%emt 0:09:32]} 14. Bxf6 {[%emt 0:03:25]} Nxf6 {[%emt 0:03:41]} 15. g4 {[%emt 0:02:17]} Bg6 {[%emt 0:02:22]} 16. Nh4 {[%emt 0:00:53]} Bxf5 {[%emt 0:03:57]} 17. Nxf5 {[%emt 0:00:10]} Rfe8 {[%emt 0:04:29]} 18. Qf3 {[%emt 0:01:47]} Bf4 {[%emt 0:01:45]} 19. Nf1 {[%emt 0:04:05]} Ne4 {[%emt 0:04:57]} 20. N1e3 {[%emt 0:06:00]} Bxe3 {[%emt 0:08:51]} 21. Rxe3 {[%emt 0:04:46]} Qb6 {[%emt 0:03:31]} 22. Re2 {[%emt 0:03:42]} Ng5 {[%emt 0:03:40]} 23. Rxe8+ {[%emt 0:09:29]} Rxe8 {[%emt 0:00:02]} 24. Qxd5 {[%emt 0:08:22]} Nxh3+ {[%emt 0:00:24]} 25. Kh2 {[%emt 0:00:29]} Nxf2 {[%emt 0:03:47]} 26. Kg3 {[%emt 0:09:59]} Qxb2 {[%emt 0:04:39]} 27. Rf1 {[%emt 0:01:45]} Ne4+ {[%emt 0:01:23]} 28. Kh3 {[%emt 0:03:43]} Ng5+ {[%emt 0:03:32]} 29. Kg3 {[%emt 0:00:30]} Qxc3+ {[%emt 0:00:20]} 30. Kh2 {[%emt 0:03:07]} Qh3+ {[%emt 0:03:15]} 31. Kg1 {[%emt 0:00:08]} Qxg4+ {[%emt 0:00:25]} 32. Kh1 {[%emt 0:00:39]} Qh5+ {[%emt 0:01:17]} 33. Kg1 {[%emt 0:02:18]} Nh3+ {[%emt 0:01:30]} 34. Kg2 {[%emt 0:00:22]} Qe2+ {[%emt 0:00:49]} 35. Kg3 {[%emt 0:00:27]} Qxf1 {[%emt 0:00:28]} 36. Ne7+ {[%emt 0:00:45]} Kf8 {[%emt 0:00:19]} 37. Qd6 {[%emt 0:00:39]} Qd3+ {[%emt 0:00:30]} 38. Kg2 {[%emt 0:00:29]} Rxe7 {[%emt 0:00:24]} 39. Qd8+ {[%emt 0:00:10]} Re8 {[%emt 0:00:09]} 40. Qd6+ {[%emt 0:00:02]} Kg8 {[%emt 0:00:16]} 41. Qd7 {[%emt 0:01:22]} Re2+ {[%emt 0:00:13]} 0-1